lending/lending_fUSD_20250429
["ID","MTS","AMOUNT","RATE_DAILY","PERIOD"]
[359320288,1745920242128,-470.0,0.00027599,2]
[359320289,1745920242138,-470.0,0.00027599,2]
[359320290,1745920242148,-470.0,0.00027599,2]
[359320291,1745920242158,-578.21,0.00027599,2]
[359320292,1745920242167,-470.0,0.00027599,2]
[359320293,1745920242177,-470.0,0.00027599,2]
[359320294,1745920242187,-602.95,0.00027599,2]
[359320295,1745920242196,-595.78,0.00027599,2]
[359320296,1745920242205,-470.0,0.00027599,2]
[359320297,1745920242215,-844.39,0.00027599,2]
[359320298,1745920242224,-470.0,0.00027599,2]
[359320299,1745920242234,-557.43,0.00027599,2]
[359320300,1745920242243,-688.61,0.00027599,2]
[359320301,1745920242252,-470.0,0.00027599,2]
[359320302,1745920242262,-470.0,0.00027599,2]
[359320303,1745920242272,-470.0,0.00027599,2]
[359320304,1745920242284,-470.0,0.00027599,2]
[359320305,1745920242294,-470.0,0.00027599,2]
[359320306,1745920242303,-470.0,0.00027599,2]
[359320307,1745920242315,-577.93,0.00027599,2]
[359320308,1745920242324,-470.0,0.00027599,2]
[359320309,1745920242335,-470.0,0.00027599,2]
[359320310,1745920242344,-470.0,0.00027599,2]
[359320311,1745920242354,-470.0,0.00027599,2]
[359320312,1745920242363,-958.45,0.00027599,2]
[359320313,1745920242372,-470.0,0.00027599,2]
[359320314,1745920242382,-470.0,0.00027599,2]
[359320315,1745920242391,-470.0,0.00027599,2]
[359320316,1745920242400,-509.75,0.00027599,2]
[359320317,1745920242410,-470.0,0.00027599,2]
[359320318,1745920242419,-470.0,0.00027599,2]
[359320319,1745920242428,-470.0,0.00027599,2]
[359320320,1745920242437,-550.05,0.00027599,2]
[359320321,1745920242447,-470.0,0.00027599,2]
[359320322,1745920242457,-565.89,0.00027599,2]
[359320323,1745920242466,-470.0,0.00027599,2]
[359320324,1745920242475,-470.0,0.00027599,2]
[359320325,1745920242484,-838.4,0.00027599,2]
[359320326,1745920242493,-470.0,0.00027599,2]
[359320327,1745920242503,-504.09,0.00027599,2]
[359320328,1745920242512,-470.0,0.00027599,2]
[359320329,1745920242521,-688.96,0.00027599,2]
[359320330,1745920242531,-2619.69,0.00027599,2]
[359320331,1745920242540,-524.82927799,0.00027599,2]
[359320332,1745920242549,-470.0,0.00027599,2]
[359320333,1745920242559,-470.0,0.00027599,2]
[359320334,1745920242569,-470.0,0.00027599,2]
[359320335,1745920242579,-470.0,0.00027599,2]
[359320336,1745920242588,-470.0,0.00027599,2]
[359320337,1745920242597,-470.0,0.00027599,2]
[359320338,1745920242607,-470.0,0.00027599,2]
[359320339,1745920242616,-654.53,0.00027599,2]
[359320340,1745920242626,-470.0,0.00027599,2]
[359320341,1745920242635,-1557.28,0.00027599,2]
[359320342,1745920242645,-470.0,0.00027599,2]
[359320343,1745920242655,-470.0,0.00027599,2]
[359320344,1745920242664,-470.0,0.00027599,2]
[359320345,1745920242674,-470.0,0.00027599,2]
[359320346,1745920242683,-880.25,0.00027599,2]
[359320347,1745920242693,-470.0,0.00027599,2]
[359320348,1745920242702,-1885.13,0.00027599,2]
[359320349,1745920242711,-519.22,0.00027599,2]
[359320350,1745920242721,-470.0,0.00027599,2]
[359320351,1745920242730,-692.79,0.00027599,2]
[359320352,1745920242740,-470.0,0.00027599,2]
[359320353,1745920242749,-470.0,0.00027599,2]
[359320354,1745920242759,-568.69,0.00027599,2]
[359320355,1745920242768,-470.0,0.00027599,2]
[359320356,1745920242777,-470.0,0.00027599,2]
[359320357,1745920242787,-288.25205769,0.00027599,2]
[359320358,1745920242796,-470.0,0.00027599,2]
[359320359,1745920242805,-470.0,0.00027599,2]
[359320360,1745920242815,-474.15,0.00027599,2]
[359320361,1745920242828,-470.0,0.00027599,2]
[359320362,1745920242837,-721.57,0.00027599,2]
[359320363,1745920242847,-470.0,0.00027599,2]
[359320364,1745920242857,-470.0,0.00027599,2]
[359320365,1745920242866,-470.0,0.00027599,2]
[359320366,1745920242876,-485.72,0.00027599,2]
[359320367,1745920242885,-470.0,0.00027599,2]
[359320368,1745920242896,-475.6,0.00027599,2]
[359320369,1745920242905,-470.0,0.00027599,2]
[359320370,1745920242915,-470.0,0.00027599,2]
[359320371,1745920242924,-470.0,0.00027599,2]
[359320372,1745920242934,-470.0,0.00027599,2]
[359320373,1745920242943,-470.0,0.00027599,2]
[359320374,1745920242953,-470.0,0.00027599,2]
[359320375,1745920242963,-1068.9,0.00027599,2]
[359320376,1745920242973,-7219.66,0.00027599,2]
[359320377,1745920242982,-470.0,0.00027599,2]
[359320378,1745920242991,-470.0,0.00027599,2]
[359320380,1745920243001,-478.15,0.00027599,2]
[359320382,1745920243011,-553.2,0.00027599,2]
[359320383,1745920243020,-470.0,0.00027599,2]
[359320384,1745920243031,-470.0,0.00027599,2]
[359320385,1745920243040,-470.0,0.00027599,2]
[359320386,1745920243050,-470.0,0.00027599,2]
[359320387,1745920243061,-496.62,0.00027599,2]
[359320388,1745920243070,-470.0,0.00027599,2]
[359320389,1745920243081,-470.0,0.00027599,2]
[359320390,1745920243090,-545.99,0.00027599,2]
[359320391,1745920243101,-470.0,0.00027599,2]
[359320393,1745920243110,-470.0,0.00027599,2]
[359320395,1745920243120,-470.0,0.00027599,2]
[359320399,1745920243130,-470.0,0.00027599,2]
[359320402,1745920243139,-470.0,0.00027599,2]
[359320404,1745920243149,-2188.7,0.00027599,2]
[359320406,1745920243159,-470.0,0.00027599,2]
[359320407,1745920243168,-5661.79,0.00027599,2]
[359320408,1745920243178,-184967.85173742,0.000276,2]
[359320409,1745920243598,-636.02,0.00027597,2]
[359320410,1745920243608,-153.01427665,0.000276,2]
[359320411,1745920243619,-7045.58492199,0.000276,2]
[359320412,1745920243630,-4939.780016,0.000276,2]
[359320413,1745920243642,-3070.5981233,0.000276,2]
[359320430,1745920246489,-428.84696995,0.00027497,2]
[359320431,1745920246499,-470.0,0.00027589,2]
[359320432,1745920246508,-50.88303005,0.00027599,2]
[359320435,1745920321314,200.0,0.00029507,117]
[359320436,1745920321387,200.0,0.00027207,117]
[359320437,1745920393034,187.92,0.00026792,120]
[359320438,1745920697542,250.0,0.00017,2]
[359320439,1745920698624,300.0,0.00019,2]
[359320440,1745920700471,-169.04,0.00021,2]
[359320475,1745921431357,-180.96,0.00021,2]
[359320476,1745921431367,-171.75,0.00021198,2]
[359320477,1745921431377,-375.3380797,0.00023,2]
[359320478,1745921431618,-24.6619203,0.00023,2]
[359320479,1745921431628,-169.07,0.00023874,2]
[359320480,1745921431638,-508.57,0.00024797,2]
[359320481,1745921431648,-1699.03122115,0.00025075,2]
[359320482,1745921431657,-3265.0,0.00026343,2]
[359320483,1745921431669,-1000.0,0.00026369,2]
[359320484,1745921431678,-245.85,0.00026419,2]
[359320486,1745921431687,-1200.0,0.0002646,2]
[359320488,1745921431696,-500.0,0.00026461,2]
[359320490,1745921431705,-250.0,0.00026561,2]
[359320492,1745921431715,-207.4,0.00026584,2]
[359320494,1745921431724,-184.57,0.00026787,2]
[359320496,1745921431734,-150.0,0.0002679,2]
[359320498,1745921431743,-629.6429509,0.00026882,4]
[359320500,1745921431752,-1966.43386498,0.000269,7]
[359320502,1745921431761,-508.57,0.00027061,2]
[359320504,1745921431770,-162.67,0.00027104,2]
[359320506,1745921431779,-150.0,0.00027152,2]
[359320508,1745921431789,-451.08,0.00027152,2]
[359320510,1745921431798,-1152.67,0.00027152,2]
[359320511,1745921431807,-437.67,0.00027152,2]
[359320512,1745921431816,-1152.67,0.00027164,2]
[359320515,1745921431826,-150.0,0.00027164,2]
[359320517,1745921431835,-1152.67,0.00027164,2]
[359320519,1745921431844,-1152.67,0.00027164,2]
[359320521,1745921431853,-150.0,0.00027164,2]
[359320523,1745921431862,-1152.67,0.00027164,2]
[359320525,1745921431871,-150.0,0.00027164,2]
[359320527,1745921431881,-451.08,0.00027164,2]
[359320529,1745921431891,-150.0,0.00027164,2]
[359320531,1745921431900,-265.66,0.00027164,2]
[359320533,1745921431910,-150.0,0.00027164,2]
[359320535,1745921431919,-162.05,0.00027164,2]
[359320537,1745921431928,-703.08,0.00027164,2]
[359320539,1745921431937,-150.0,0.00027317,2]
[359320541,1745921431946,-152.02,0.00027397,2]
[359320543,1745921431956,-150.0,0.0002742,2]
[359320545,1745921431966,-150.0,0.00027468,2]
[359320547,1745921431974,-150.0,0.00027479,2]
[359320549,1745921431984,-162.28956621,0.00027497,2]
[359320551,1745921431993,-650.55335423,0.00027497,13]
[359320553,1745921432002,-316.49626741,0.00027498,2]
[359320555,1745921432011,-1476.21259676,0.00027498,2]
[359320558,1745921432021,-436.50495154,0.00027498,2]
[359320560,1745921432031,-3000.0,0.000275,2]
[359320562,1745921432040,-150.0,0.00027511,2]
[359320564,1745921432049,-150.0,0.00027542,2]
[359320566,1745921432058,-150.0,0.00027548,2]
[359320567,1745921432067,-150.0,0.00027549,2]
[359320569,1745921432076,-1966.43386472,0.00027555,7]
[359320571,1745921432086,-502.28899503,0.00027573,5]
[359320573,1745921432095,-523.45807803,0.00027573,5]
[359320575,1745921432104,-500.0,0.00027573,5]
[359320577,1745921432114,-630.95827983,0.00027573,5]
[359320579,1745921432123,-502.2620654,0.00027573,5]
[359320582,1745921432132,-500.0,0.00027573,5]
[359320584,1745921432143,-500.99256753,0.00027573,3]
[359320586,1745921432152,-500.0,0.00027573,5]
[359320588,1745921432161,-500.0,0.00027573,2]
[359320589,1745921432171,-1476.21259672,0.00027581,2]
[359320592,1745921432180,-316.49626736,0.00027586,2]
[359320594,1745921432189,-163.71782981,0.00027587,2]
[359320596,1745921432198,-60652.453866,0.00027588,2]
[359320597,1745921432207,-155.76,0.00027588,2]
[359320600,1745921432217,-150.0,0.00027592,2]
[359320602,1745921432226,-527.29102283,0.00027597,2]
[359320603,1745921432236,-470.0,0.00027597,2]
[359320605,1745921432245,-544.35220303,0.00027597,2]
[359320607,1745921432255,-523.24,0.00027597,2]
[359320610,1745921432264,-470.0,0.00027597,2]
[359320612,1745921432273,-470.0,0.00027597,2]
[359320613,1745921432282,-470.0,0.00027597,2]
[359320616,1745921432292,-470.0,0.00027597,2]
[359320618,1745921432302,-470.0,0.00027597,2]
[359320619,1745921432311,-470.0,0.00027597,2]
[359320621,1745921432320,-470.0,0.00027597,2]
[359320623,1745921432329,-587.29,0.00027597,2]
[359320625,1745921432339,-530.98,0.00027597,2]
[359320627,1745921432348,-470.0,0.00027597,2]
[359320629,1745921432357,-470.0,0.00027597,2]
[359320631,1745921432367,-470.0,0.00027597,2]
[359320633,1745921432376,-470.0,0.00027597,2]
[359320635,1745921432385,-479.12,0.00027597,2]
[359320637,1745921432395,-470.0,0.00027597,2]
[359320639,1745921432406,-470.0,0.00027597,2]
[359320642,1745921432416,-470.0,0.00027597,2]
[359320644,1745921432425,-470.0,0.00027597,2]
[359320646,1745921432434,-470.0,0.00027597,2]
[359320648,1745921432443,-470.0,0.00027597,2]
[359320649,1745921432452,-523.5,0.00027597,2]
[359320652,1745921432462,-470.0,0.00027597,2]
[359320654,1745921432471,-805.31,0.00027597,2]
[359320655,1745921432480,-260.96511259,0.00027597,2]
[359320657,1745921432489,-470.0,0.00027597,2]
[359320659,1745921432497,-470.0,0.00027597,2]
[359320661,1745921432506,-470.0,0.00027597,2]
[359320663,1745921432515,-470.0,0.00027597,2]
[359320665,1745921432524,-186.14470499,0.00027597,2]
[359320667,1745921432533,-470.0,0.00027597,2]
[359320669,1745921432543,-470.0,0.00027597,2]
[359320671,1745921432552,-470.0,0.00027597,2]
[359320673,1745921432561,-470.0,0.00027597,2]
[359320675,1745921432571,-470.0,0.00027597,2]
[359320676,1745921432580,-470.0,0.00027597,2]
[359320677,1745921432590,-470.0,0.00027597,2]
[359320678,1745921432599,-470.0,0.00027597,2]
[359320679,1745921432608,-470.0,0.00027597,2]
[359320680,1745921432617,-470.0,0.00027597,2]
[359320681,1745921432626,-500.0,0.00027597,2]
[359320682,1745921432635,-500.0,0.00027597,2]
[359320683,1745921432644,-470.0,0.00027597,2]
[359320684,1745921432653,-150.0,0.00027597,2]
[359320685,1745921432663,-470.0,0.00027597,2]
[359320686,1745921432674,-154.71054526,0.00027597,2]
[359320687,1745921432684,-500.0,0.00027597,2]
[359320688,1745921432692,-470.0,0.00027597,2]
[359320689,1745921432702,-470.0,0.00027597,2]
[359320690,1745921432715,-810.96,0.00027597,2]
[359320691,1745921432725,-470.0,0.00027597,2]
[359320692,1745921432734,-470.0,0.00027597,2]
[359320693,1745921432744,-470.0,0.00027597,2]
[359320694,1745921432753,-470.0,0.00027597,2]
[359320695,1745921432762,-470.0,0.00027597,2]
[359320696,1745921432771,-470.0,0.00027597,2]
[359320697,1745921432780,-470.0,0.00027597,2]
[359320698,1745921432790,-470.0,0.00027597,2]
[359320699,1745921432799,-470.0,0.00027597,2]
[359320700,1745921432808,-470.0,0.00027597,2]
[359320701,1745921432817,-1502.61,0.00027597,2]
[359320702,1745921432827,-470.0,0.00027597,2]
[359320703,1745921432837,-470.0,0.00027597,2]
[359320704,1745921432846,-477.26267962,0.00027597,2]
[359320705,1745921432856,-470.0,0.00027597,2]
[359320706,1745921432865,-470.0,0.00027597,2]
[359320707,1745921432875,-400.0,0.00027597,2]
[359320708,1745921432884,-470.0,0.00027597,2]
[359320709,1745921432893,-470.0,0.00027597,2]
[359320710,1745921432903,-150.0,0.00027597,2]
[359320711,1745921432912,-470.0,0.00027597,2]
[359320712,1745921432921,-150.0,0.00027597,2]
[359320713,1745921432930,-470.0,0.00027597,2]
[359320714,1745921432940,-452.0,0.00027597,2]
[359320715,1745921432950,-470.0,0.00027597,2]
[359320716,1745921432960,-470.0,0.00027597,2]
[359320717,1745921432976,-253.9059993,0.00027597,2]
[359320718,1745921432986,-150.0,0.00027597,2]
[359320719,1745921432996,-470.0,0.00027597,2]
[359320720,1745921433005,-500.0,0.00027597,2]
[359320721,1745921433015,-470.0,0.00027597,2]
[359320722,1745921433025,-470.0,0.00027597,2]
[359320723,1745921433034,-7674.422337,0.00027597,2]
[359320724,1745921433043,-470.0,0.00027597,2]
[359320725,1745921433052,-504.09,0.00027597,2]
[359320726,1745921433063,-470.0,0.00027597,2]
[359320727,1745921433073,-470.0,0.00027597,2]
[359320728,1745921433083,-1037.260517,0.00027597,2]
[359320729,1745921433093,-470.0,0.00027597,2]
[359320730,1745921433103,-470.0,0.00027597,2]
[359320731,1745921433113,-470.0,0.00027597,2]
[359320732,1745921433122,-923.08,0.00027597,2]
[359320733,1745921433132,-1399.29,0.00027597,2]
[359320734,1745921433143,-470.0,0.00027597,2]
[359320735,1745921433152,-627.979165,0.00027597,2]
[359320736,1745921433162,-654.53,0.00027597,2]
[359320737,1745921433171,-470.0,0.00027597,2]
[359320738,1745921433181,-470.0,0.00027597,2]
[359320739,1745921433190,-470.0,0.00027597,2]
[359320740,1745921433199,-470.0,0.00027597,2]
[359320741,1745921433208,-333.670537,0.00027597,2]
[359320742,1745921433219,-470.0,0.00027597,2]
[359320743,1745921433228,-470.0,0.00027597,2]
[359320744,1745921433236,-499.75,0.00027597,2]
[359320745,1745921433245,-479.63,0.00027597,2]
[359320746,1745921433254,-470.0,0.00027597,2]
[359320747,1745921433263,-580.53,0.00027597,2]
[359320748,1745921433272,-470.0,0.00027597,2]
[359320749,1745921433281,-470.0,0.00027597,2]
[359320750,1745921433291,-1100.86,0.00027597,2]
[359320751,1745921433300,-470.0,0.00027597,2]
[359320752,1745921433309,-470.0,0.00027597,2]
[359320753,1745921433318,-547.73,0.00027597,2]
[359320754,1745921433328,-163.820654,0.00027597,2]
[359320755,1745921433337,-380.2005055,0.00027597,2]
[359320756,1745921433347,-470.0,0.00027597,2]
[359320757,1745921433356,-470.0,0.00027597,2]
[359320758,1745921433366,-470.0,0.00027597,2]
[359320759,1745921433377,-470.0,0.00027597,2]
[359320760,1745921433386,-470.0,0.00027597,2]
[359320761,1745921433396,-405.26337636,0.00027597,2]
[359320762,1745921433405,-699.49,0.00027597,2]
[359320763,1745921433415,-470.0,0.00027597,2]
[359320764,1745921433424,-568.69,0.00027597,2]
[359320765,1745921433434,-569.58,0.00027597,2]
[359320766,1745921433443,-470.0,0.00027597,2]
[359320767,1745921433452,-327.56223272,0.00027597,2]
[359320768,1745921433461,-470.0,0.00027597,2]
[359320769,1745921433470,-599.11,0.00027597,2]
[359320770,1745921433479,-470.0,0.00027597,2]
[359320771,1745921433487,-552.42,0.00027597,2]
[359320772,1745921433495,-497.33,0.00027597,2]
[359320773,1745921433504,-470.0,0.00027597,2]
[359320774,1745921433514,-470.0,0.00027597,2]
[359320775,1745921433523,-470.0,0.00027597,2]
[359320776,1745921433531,-470.0,0.00027597,2]
[359320777,1745921433540,-756.07,0.00027597,2]
[359320778,1745921433549,-470.0,0.00027597,2]
[359320779,1745921433558,-470.0,0.00027597,2]
[359320780,1745921433567,-470.0,0.00027597,2]
[359320781,1745921433575,-470.0,0.00027597,2]
[359320782,1745921433806,-470.0,0.00027597,2]
[359320783,1745921433816,-470.0,0.00027597,2]
[359320784,1745921433827,-637.85,0.00027597,2]
[359320785,1745921433836,-470.0,0.00027597,2]
[359320786,1745921433845,-470.0,0.00027597,2]
[359320787,1745921433855,-470.0,0.00027597,2]
[359320788,1745921433864,-856.61,0.00027597,2]
[359320789,1745921433873,-470.0,0.00027597,2]
[359320790,1745921433883,-922.29,0.00027597,2]
[359320791,1745921433893,-470.0,0.00027597,2]
[359320792,1745921433903,-470.0,0.00027597,2]
[359320793,1745921433912,-565.78,0.00027597,2]
[359320794,1745921433922,-470.0,0.00027597,2]
[359320795,1745921433931,-605.11,0.00027597,2]
[359320796,1745921433941,-470.0,0.00027597,2]
[359320797,1745921433951,-470.0,0.00027597,2]
[359320798,1745921433961,-470.0,0.00027597,2]
[359320799,1745921433971,-470.0,0.00027597,2]
[359320800,1745921433980,-726.38,0.00027597,2]
[359320801,1745921433989,-470.0,0.00027597,2]
[359320802,1745921433999,-2091.59,0.00027597,2]
[359320803,1745921434010,-6459.68,0.00027597,2]
[359320804,1745921434019,-470.0,0.00027597,2]
[359320805,1745921434029,-470.0,0.00027597,2]
[359320806,1745921434039,-492.41,0.00027597,2]
[359320807,1745921434048,-542.22,0.00027597,2]
[359320808,1745921434058,-470.0,0.00027597,2]
[359320809,1745921434067,-470.0,0.00027597,2]
[359320810,1745921434077,-470.0,0.00027597,2]
[359320811,1745921434087,-470.0,0.00027597,2]
[359320812,1745921434097,-150.0,0.00027597,2]
[359320813,1745921434107,-470.0,0.00027597,2]
[359320814,1745921434116,-487.0,0.00027597,2]
[359320815,1745921434126,-470.0,0.00027597,2]
[359320816,1745921434136,-470.0,0.00027597,2]
[359320817,1745921434146,-517.73,0.00027597,2]
[359320818,1745921434156,-470.0,0.00027597,2]
[359320819,1745921434165,-470.0,0.00027597,2]
[359320820,1745921434175,-838.4,0.00027597,2]
[359320821,1745921434185,-470.0,0.00027598,2]
[359320822,1745921434195,-563.94,0.00027598,2]
[359320823,1745921434205,-470.0,0.00027598,2]
[359320824,1745921434215,-470.0,0.00027598,2]
[359320825,1745921434225,-470.0,0.00027598,2]
[359320826,1745921434234,-507.42,0.00027598,2]
[359320827,1745921434243,-470.0,0.00027598,2]
[359320828,1745921434253,-470.0,0.00027598,2]
[359320829,1745921434262,-470.0,0.00027598,2]
[359320830,1745921434271,-407.56729899,0.00027598,2]
[359320831,1745921434280,-400.0,0.00027598,2]
[359320832,1745921434290,-400.0,0.00027598,2]
[359320833,1745921434300,-470.0,0.00027598,2]
[359320834,1745921434310,-470.0,0.00027598,2]
[359320835,1745921434320,-470.0,0.00027598,2]
[359320836,1745921434329,-470.0,0.00027598,2]
[359320837,1745921434338,-470.0,0.00027598,2]
[359320838,1745921434348,-470.0,0.00027598,2]
[359320839,1745921434358,-603.11,0.00027598,2]
[359320840,1745921434368,-513.97,0.00027598,2]
[359320841,1745921434377,-470.0,0.00027598,2]
[359320842,1745921434388,-470.0,0.00027598,2]
[359320843,1745921434397,-470.0,0.00027598,2]
[359320844,1745921434407,-470.0,0.00027598,2]
[359320845,1745921434416,-470.0,0.00027598,2]
[359320846,1745921434426,-470.0,0.00027598,2]
[359320847,1745921434435,-470.0,0.00027598,2]
[359320848,1745921434445,-470.0,0.00027598,2]
[359320849,1745921434455,-289.46610289,0.00027598,2]
[359320850,1745921434464,-436.29867245,0.00027598,2]
[359320851,1745921434474,-470.0,0.00027598,2]
[359320852,1745921434483,-470.0,0.00027598,2]
[359320853,1745921434492,-208.50256609,0.00027598,2]
[359320854,1745921434501,-470.0,0.00027598,2]
[359320855,1745921434511,-470.0,0.00027598,2]
[359320856,1745921434521,-470.0,0.00027598,2]
[359320857,1745921434530,-470.0,0.00027598,2]
[359320858,1745921434541,-512.6472628,0.00027598,2]
[359320859,1745921434550,-470.0,0.00027598,2]
[359320860,1745921434559,-470.0,0.00027598,2]
[359320861,1745921434568,-470.0,0.00027598,2]
[359320862,1745921434578,-470.0,0.00027598,2]
[359320863,1745921434587,-470.0,0.00027598,2]
[359320864,1745921434597,-470.0,0.00027598,2]
[359320865,1745921434608,-470.0,0.00027598,2]
[359320866,1745921434618,-470.0,0.00027598,2]
[359320867,1745921434627,-470.0,0.00027598,2]
[359320868,1745921434637,-470.0,0.00027598,2]
[359320869,1745921434647,-470.0,0.00027598,2]
[359320870,1745921434656,-470.0,0.00027598,2]
[359320871,1745921434668,-470.0,0.00027598,2]
[359320872,1745921434677,-470.0,0.00027598,2]
[359320873,1745921434687,-623.2,0.00027598,2]
[359320874,1745921434696,-470.0,0.00027598,2]
[359320875,1745921434706,-470.0,0.00027598,2]
[359320876,1745921434715,-470.0,0.00027598,2]
[359320877,1745921434725,-470.0,0.00027598,2]
[359320878,1745921434734,-470.0,0.00027598,2]
[359320879,1745921434743,-470.0,0.00027598,2]
[359320880,1745921434753,-470.0,0.00027598,2]
[359320881,1745921434765,-519.74,0.00027598,2]
[359320882,1745921434775,-470.0,0.00027598,2]
[359320883,1745921434787,-470.0,0.00027598,2]
[359320884,1745921434797,-470.0,0.00027598,2]
[359320885,1745921434807,-470.0,0.00027598,2]
[359320886,1745921434817,-470.0,0.00027598,2]
[359320887,1745921434827,-470.0,0.00027598,2]
[359320888,1745921434838,-470.0,0.00027598,2]
[359320889,1745921434848,-470.0,0.00027598,2]
[359320890,1745921434857,-454.94126655,0.00027598,2]
[359320891,1745921434867,-574.94,0.00027598,2]
[359320892,1745921434879,-550.46,0.00027598,2]
[359320893,1745921434888,-470.0,0.00027598,2]
[359320894,1745921434898,-470.0,0.00027598,2]
[359320895,1745921434907,-470.0,0.00027598,2]
[359320896,1745921434917,-470.0,0.00027598,2]
[359320897,1745921434926,-470.0,0.00027598,2]
[359320898,1745921434937,-470.0,0.00027598,2]
[359320899,1745921434947,-470.0,0.00027598,2]
[359320900,1745921434957,-470.0,0.00027598,2]
[359320901,1745921434966,-470.0,0.00027598,2]
[359320902,1745921434976,-470.0,0.00027598,2]
[359320903,1745921434985,-493.83,0.00027598,2]
[359320904,1745921434994,-470.0,0.00027598,2]
[359320905,1745921435004,-470.0,0.00027598,2]
[359320906,1745921435015,-470.0,0.00027598,2]
[359320907,1745921435025,-470.0,0.00027598,2]
[359320908,1745921435035,-470.0,0.00027598,2]
[359320909,1745921435045,-470.0,0.00027598,2]
[359320910,1745921435056,-609.52,0.00027598,2]
[359320911,1745921435067,-470.0,0.00027598,2]
[359320912,1745921435079,-470.0,0.00027598,2]
[359320913,1745921435089,-552.09,0.00027598,2]
[359320914,1745921435099,-470.0,0.00027598,2]
[359320915,1745921435111,-470.0,0.00027598,2]
[359320916,1745921435120,-660.99,0.00027598,2]
[359320917,1745921435130,-470.0,0.00027598,2]
[359320918,1745921435139,-470.0,0.00027598,2]
[359320919,1745921435149,-537.17,0.00027598,2]
[359320920,1745921435158,-470.0,0.00027598,2]
[359320921,1745921435168,-507.82966633,0.00027598,2]
[359320922,1745921435177,-470.0,0.00027598,2]
[359320923,1745921435187,-500.0,0.00027598,2]
[359320924,1745921435196,-470.0,0.00027598,2]
[359320925,1745921435206,-470.0,0.00027598,2]
[359320926,1745921435216,-470.0,0.00027598,2]
[359320927,1745921435226,-470.0,0.00027598,2]
[359320928,1745921435236,-841.47,0.00027598,2]
[359320929,1745921435247,-464.66196191,0.00027598,2]
[359320930,1745921435256,-470.0,0.00027598,2]
[359320931,1745921435265,-470.0,0.00027598,2]
[359320932,1745921435275,-470.0,0.00027598,2]
[359320933,1745921435285,-470.0,0.00027598,2]
[359320934,1745921435295,-470.0,0.00027598,2]
[359320935,1745921435305,-470.0,0.00027598,2]
[359320936,1745921435314,-470.0,0.00027598,2]
[359320937,1745921435325,-300.0,0.00027598,2]
[359320938,1745921435334,-470.0,0.00027598,2]
[359320939,1745921435345,-470.0,0.00027598,2]
[359320940,1745921435355,-470.0,0.00027598,2]
[359320941,1745921435364,-470.0,0.00027598,2]
[359320942,1745921435373,-310.06925309,0.00027598,2]
[359320943,1745921435384,-470.0,0.00027598,2]
[359320944,1745921435393,-470.0,0.00027598,2]
[359320945,1745921435402,-762.38,0.00027598,2]